fUST/lending_fUST_20250818
["ID","MTS","AMOUNT","RATE_DAILY","PERIOD"]
[380035307,1755491440310,-11937.22,0.000266,7]
[380035309,1755491440319,-353.49,0.00026613,7]
[380035311,1755491440328,-168.603469,0.00026712,2]
[380035313,1755491440338,-353.49,0.00026713,7]
[380035315,1755491440347,-3500.0,0.00026754,2]
[380035317,1755491440357,-2010.16559006,0.00026804,2]
[380035319,1755491440366,-500.0,0.00026807,2]
[380035321,1755491440378,-353.61680472,0.00026813,7]
[380035323,1755491440387,-190.0,0.00026815,2]
[380035325,1755491440396,-500.0,0.0002683,2]
[380035327,1755491440406,-594.0,0.0002685,2]
[380035329,1755491440416,-1200.0,0.00026857,2]
[380035331,1755491440425,-1000.0,0.000269,60]
[380035333,1755491440435,-700.0,0.00026921,2]
[380035335,1755491440444,-500.0,0.00026921,2]
[380035338,1755491440454,-1200.0,0.00026936,2]
[380035340,1755491440464,-700.0,0.0002694,2]
[380035342,1755491440473,-1200.0,0.00026955,2]
[380035344,1755491440483,-9588.51254757,0.00026965,6]
[380035346,1755491440492,-2000.0,0.00026999,10]
[380035348,1755491440502,-1000.0,0.00026999,10]
[380035350,1755491440511,-1000.0,0.00026999,10]
[380035352,1755491440521,-1058.58,0.00026999,10]
[380035353,1755491440533,-132982.08623616,0.00027,30]
[380035356,1755491440543,-179.31447988,0.00027,30]
[380035358,1755491440552,-200.0,0.00027,30]
[380035360,1755491440562,-12682.46447135,0.00027,30]
[380035362,1755491440572,-12682.46447135,0.00027,30]
[380035364,1755491440582,-207.0,0.00027,2]
[380035366,1755491440592,-248.678284,0.00027,61]
[380035368,1755491440603,-151.1,0.00027,7]
[380035381,1755491440716,-232.18122251,0.00027,30]
[380035383,1755491440726,-843.81736472,0.00027,30]
[380035385,1755491440735,-417.15472785,0.00027,30]
[380035387,1755491440744,-417.15472785,0.00027,3]
[380035389,1755491440753,-216.85420361,0.00027,30]
[380035391,1755491440763,-160.0,0.00027,30]
[380035393,1755491440771,-375.82681177,0.00027,30]
[380035395,1755491440781,-215.75323784,0.00027,30]
[380035396,1755491440792,-1200.0,0.00027,2]
[380035398,1755491440801,-700.0,0.00027017,2]
[380035400,1755491440810,-2010.16559006,0.00027053,2]
[380035402,1755491440819,-1069.72876761,0.00027053,2]
[380035404,1755491440829,-500.0,0.00027056,2]
[380035407,1755491440839,-500.0,0.00027067,2]
[380035408,1755491440848,-700.0,0.00027092,2]
[380035410,1755491440857,-10000.0,0.000271,120]
[380035412,1755491440867,-151.31843755,0.00027102,2]
[380035414,1755491440879,-1260.0,0.00027112,2]
[380035416,1755491440888,-700.0,0.00027118,2]
[380035418,1755491440898,-170.697831,0.0002712,2]
[380035420,1755491440907,-166.0,0.00027123,23]
[380035422,1755491440916,-594.0,0.00027124,2]
[380035424,1755491440925,-226288.35833473,0.00027153,20]
[380035428,1755491440992,-480.0,0.0001965,2]
[380035429,1755491441000,-480.0,0.00019924,2]
[380035430,1755491441010,-480.0,0.00020198,2]
[380035431,1755491441020,-155.375114,0.00020238,2]
[380035432,1755491441029,-155.375114,0.00020316,2]
[380035433,1755491441038,-480.0,0.00020472,2]
[380035434,1755491441047,-480.0,0.00020746,2]
[380035435,1755491441056,-480.0,0.0002102,2]
[380035436,1755491441066,-480.0,0.00021294,2]
[380035437,1755491441075,-480.0,0.00021568,2]
[380035438,1755491441084,-384.98300087,0.00027053,90]
[380035439,1755491441093,-1141.58288987,0.00027153,20]
[380035462,1755491443014,-155.375114,0.00020197,2]
[380035463,1755491443024,-364.10488596,0.00020221,2]
[380035464,1755491443071,-289.54641168,0.00020221,2]
[380035465,1755491443130,-346.34870236,0.00020221,2]
[380035466,1755491443139,-155.375114,0.00020221,2]
[380035467,1755491443148,-155.375114,0.00020221,2]
[380035468,1755491443158,-1000.0,0.00020221,2]
[380035469,1755491443167,-155.375114,0.00020221,2]
[380035470,1755491443177,-155.375114,0.00020517,2]
[380035471,1755491443186,-155.375114,0.00020731,2]
[380035472,1755491443195,-155.375114,0.00021138,2]
[380035474,1755491443204,-155.375114,0.00021147,2]
[380035476,1755491443214,-480.0,0.00021842,2]
[380035478,1755491443223,-480.0,0.00022116,2]
[380035480,1755491443232,-210.0,0.0002239,2]
[380035482,1755491443241,-2200.0,0.00027153,2]
[380035483,1755491443251,-116369.86275926,0.00027153,20]
[380035484,1755491443262,-13418.2535781,0.00027153,20]
[380035490,1755491446168,-1000.0,0.00020221,2]
[380035491,1755491446178,-1000.0,0.00020221,2]
[380035492,1755491446188,-827.92651459,0.00020221,2]
[380035493,1755491446199,-172.07348541,0.00020221,2]
[380035494,1755491446208,-1000.0,0.00020221,2]
[380035495,1755491446219,-202.27651459,0.00020221,2]
[380035522,1755491643667,5000.0,0.00018371,2]
[380035523,1755491659998,4550.01,0.00018371,2]
[380035524,1755491685395,163.208977,0.00013699,2]
[380035550,1755492251807,446.15369234,0.00018371,2]
[380035567,1755492411138,-446.15369234,0.00018611,2]
[380035704,1755492635448,-184.53952865,0.0001861,2]
[380035705,1755492635458,-1315.91141855,0.00018611,2]
[380035706,1755492635468,-1200.0,0.0001871,2]
[380035707,1755492635478,-5452.68082296,0.00018711,2]
[380035708,1755492635487,-200.4538407,0.00018856,2]
[380035709,1755492635496,-286.73084206,0.000189,2]
[380035710,1755492635506,-300.0,0.00018972,2]
[380035711,1755492635515,-2078.0447142,0.00018973,2]
[380035712,1755492635524,-221.82377678,0.00019686,2]
[380035713,1755492635533,-168.60347,0.00019863,2]
[380035714,1755492635542,-3352.92518887,0.000199,2]
[380035715,1755492635554,-1184.55,0.000199,2]
[380035716,1755492635564,-2976.86095603,0.000199,2]
[380035717,1755492635574,-184.53952864,0.00019996,2]
[380035718,1755492635583,-204.05951533,0.00020081,2]
[380035719,1755492635594,-15.60144287,0.00020081,2]
[380035720,1755492635603,-977.05699915,0.00020085,2]
[380035723,1755492638289,-3758.44629157,0.00020085,2]
[380035724,1755492638344,-1435.59160793,0.00020085,2]
[380035725,1755492638353,-265.76,0.00020087,3]
[380035726,1755492638362,-797.28,0.00020087,3]
[380035727,1755492638371,-500.0,0.00020096,2]
[380035728,1755492638381,-500.0,0.00020096,2]
[380035729,1755492638391,-255.82944907,0.00020096,2]
[380035731,1755492638400,-500.0,0.00020096,2]
[380035733,1755492638409,-513.88999083,0.00020096,2]
[380035735,1755492638418,-500.0,0.00020096,2]
[380035737,1755492638427,-240.51838364,0.00020096,2]
[380035739,1755492638439,-254.25226525,0.00020096,2]
[380035741,1755492638448,-500.0,0.00020096,2]
[380035743,1755492638457,-894.13178863,0.00020097,2]
[380035745,1755492638469,-280668.87899688,0.00020097,2]
[380035747,1755492638478,-312.77732831,0.00020216,2]
[380035749,1755492638487,-7514.33614485,0.00020316,2]
[380035751,1755492638496,-160.0,0.00020361,2]
[380035753,1755492638505,-843.81736472,0.00020361,2]
[380035755,1755492638514,-215.75323784,0.00020361,2]
[380035757,1755492638523,-160.0,0.00020361,2]
[380035759,1755492638533,-417.15472785,0.00020361,2]
[380035761,1755492638542,-216.85420361,0.00020361,2]
[380035763,1755492638551,-12683.78573522,0.00020362,2]
[380035765,1755492638560,-232.18122251,0.00020362,2]
[380035767,1755492638569,-528.58062739,0.00020362,2]
[380035769,1755492638578,-375.82681177,0.00020362,2]
[380035771,1755492638588,-160.0,0.00020362,2]
[380035773,1755492638597,-1057.29,0.00020526,2]
[380035775,1755492638606,-170.0,0.00020548,3]
[380035777,1755492638615,-200.0,0.00020624,20]
[380035779,1755492638624,-200.0,0.00020624,20]
[380035781,1755492638635,-200.0,0.00020624,20]
[380035783,1755492638644,-200.0,0.00020624,20]
[380035785,1755492638653,-200.0,0.00020624,20]
[380035787,1755492638662,-200.0,0.00020624,20]
[380035789,1755492638671,-200.0,0.00020624,20]
[380035791,1755492638681,-200.0,0.00020624,20]
[380035793,1755492638690,-200.0,0.00020624,20]
[380035795,1755492638699,-200.0,0.00020624,20]
[380035797,1755492638708,-600.0,0.00020624,20]
[380035799,1755492638718,-500.0,0.0002066,2]
[380035801,1755492638727,-7514.33614485,0.00020731,2]
[380035803,1755492638736,-160.0,0.00020767,2]
[380035805,1755492638746,-201.69,0.00021145,2]
[380035807,1755492638754,-7514.33614485,0.00021147,2]
[380035809,1755492638763,-312.77732828,0.00021188,2]
[380035811,1755492638773,-1000.0,0.00021208,2]
[380035813,1755492638782,-260.0,0.00021315,2]
[380035815,1755492638791,-531.52,0.00021457,3]
[380035817,1755492638801,-7514.33614485,0.00021562,2]
[380035819,1755492638809,-1500.0,0.00021756,2]
[380035821,1755492638819,-360.0,0.00021863,2]
[380035823,1755492638828,-7514.33614485,0.00021978,2]
[380035825,1755492638837,-2114.13,0.00022,7]
[380035827,1755492638849,-197.49,0.00022,7]
[380035829,1755492638859,-7162.34,0.00022,7]
[380035831,1755492638867,-312.77732828,0.0002216,2]
[380035833,1755492638876,-192.49150044,0.000222,69]
[380035835,1755492638887,-907.261,0.00022237,2]
[380035837,1755492638896,-179.625,0.00022237,2]
[380035839,1755492638905,-972.0,0.00022267,2]
[380035841,1755492638914,-637.0,0.00022267,2]
[380035842,1755492638924,-2153.0,0.00022267,2]
[380035844,1755492638934,-2000.0,0.00022304,2]
[380035846,1755492638943,-350.69682828,0.00022393,2]
[380035848,1755492638952,-7514.33614485,0.00022394,2]
[380035850,1755492638961,-460.0,0.00022411,2]
[380035852,1755492638970,-163.208977,0.00022505,2]
[380035854,1755492638979,-720.0,0.00022687,20]
[380035856,1755492638988,-7514.33614485,0.00022809,2]
[380035858,1755492638997,-1966.33338251,0.00022852,2]
[380035860,1755492639007,-560.0,0.00022958,2]
[380035862,1755492639017,-160.0,0.00023,2]
[380035864,1755492639026,-403.38,0.00023068,2]
[380035866,1755492639038,-312.77732828,0.00023132,2]
[380035868,1755492639047,-7514.33614485,0.00023225,2]
[380035870,1755492639055,-660.0,0.00023506,2]
[380035872,1755492639064,-7514.33614485,0.00023641,2]
[380035874,1755492639075,-1300.0,0.00023865,2]
[380035876,1755492639084,-2114.13,0.000239,7]
[380035878,1755492639093,-197.49,0.000239,7]
[380035880,1755492639102,-7162.34,0.000239,7]
[380035882,1755492639111,-12683.78573522,0.000239,7]
[380035884,1755492639121,-375.82681177,0.000239,7]
[380035886,1755492639130,-286.73084206,0.000239,2]
[380035888,1755492639140,-417.15472785,0.000239,7]
[380035890,1755492639149,-232.18122251,0.00024,7]
[380035892,1755492639158,-843.81736472,0.00024,7]
[380035894,1755492639167,-216.85420361,0.00024,7]
[380035896,1755492639176,-160.0,0.00024,7]
[380035898,1755492639185,-160.0,0.00024,7]
[380035900,1755492639195,-160.0,0.00024,7]
[380035903,1755492639204,-760.0,0.00024054,2]
[380035904,1755492639213,-7514.33614485,0.00024056,2]
[380035906,1755492639222,-312.77732828,0.00024103,2]
[380035908,1755492639231,-24053.24202945,0.00024372,3]
[380035910,1755492639240,-12683.78573522,0.00024372,3]
[380035913,1755492639250,-417.15472785,0.00024372,3]
[380035915,1755492639259,-216.85420361,0.00024372,3]
[380035917,1755492639268,-528.58062739,0.00024372,3]
[380035918,1755492639277,-160.0,0.00024372,3]
[380035920,1755492639286,-160.0,0.00024372,3]
[380035922,1755492639296,-160.0,0.00024372,3]
[380035925,1755492639306,-18161.88,0.000244,2]
[380035926,1755492639315,-7514.33614485,0.00024472,2]
[380035928,1755492639324,-860.0,0.00024602,2]
[380035930,1755492639333,-295.9771179,0.00024658,2]
[380035932,1755492639343,-500.0,0.00024773,2]
[380035934,1755492639352,-500.0,0.0002479,9]
[380035936,1755492639361,-121379.87242183,0.000248,2]
[380035983,1755492640470,-1620.86,0.0002389,10]
[380035984,1755492640481,-23046.39633117,0.000248,2]
[380035985,1755492640491,-7514.33614485,0.00024887,2]
[380035986,1755492640499,-255130.03549409,0.000249,2]
[380035991,1755492643490,-256.2,0.00023765,2]
[380035992,1755492643501,-143.79665343,0.00023765,2]
[380035993,1755492643510,-75292.37364087,0.000249,2]
[380036002,1755492646389,-215.75323784,0.000239,7]
[380036003,1755492646399,-215.75323784,0.00024372,3]
[380036004,1755492646409,-9048.73849832,0.000249,2]
[380036005,1755492646445,-4054.00800407,0.000249,2]
[380036006,1755492646456,-1708.55518027,0.000249,2]
[380036007,1755492646502,-9426.01228607,0.000249,2]
[380036008,1755492646560,-31039.52381049,0.000249,2]
[380036009,1755492646571,-300.51875237,0.000249,2]
[380036010,1755492674250,167.773695,0.00013699,2]
[380036070,1755493265165,-279.99929966,0.00018876,2]
[380036084,1755493604945,5000.0,0.00018371,2]
[380036103,1755493703422,167.447644,0.00013699,2]
[380036105,1755493714980,323.0,0.000201,90]
[380036119,1755493812064,4514.01699941,0.00018371,2]
[380036127,1755493832587,-241.85260243,0.00018763,2]
[380036128,1755493832596,-1200.0,0.00018862,2]
[380036129,1755493832606,-300.0,0.00018863,2]
[380036131,1755493832615,-300.0,0.00018863,2]
[380036133,1755493832626,-300.0,0.00018863,2]
[380036135,1755493832635,-300.0,0.00018863,2]
[380036137,1755493832645,-300.0,0.00018863,2]
[380036139,1755493832654,-780.0,0.00018864,2]
[380036140,1755493832663,-191.15389471,0.000189,2]
[380036141,1755493832674,-186.196036,0.00019066,2]
[380036142,1755493832683,-248.3954966,0.0001922,2]
[380036143,1755493832693,-7312.44786697,0.000199,2]
[380036144,1755493832702,-368.63766704,0.00019984,2]
[380036145,1755493832712,-221.64118321,0.00019996,2]
[380036146,1755493832722,-510.24925719,0.00019996,2]
[380036147,1755493832732,-500.0,0.00019996,2]
[380036148,1755493832741,-5039.42599787,0.00019997,2]
[380036149,1755493832753,-9621.10620559,0.00019997,2]
[380036150,1755493832762,-480.0,0.00020084,2]
[380036151,1755493832771,-481.45474172,0.00020096,2]
[380036152,1755493832781,-483.47712398,0.00020096,2]
[380036153,1755493832790,-1000.0,0.00020096,2]
[380036154,1755493832800,-1000.0,0.00020096,2]
[380036155,1755493832809,-1000.0,0.00020096,2]
[380036156,1755493832819,-1000.0,0.00020096,2]
[380036157,1755493832828,-1000.0,0.00020096,2]
[380036158,1755493832838,-7312.44786677,0.00020316,2]
[380036159,1755493832847,-170.0,0.00020548,3]
[380036160,1755493832857,-278.0,0.00020564,2]
[380036161,1755493832866,-302.0,0.00020564,2]
[380036162,1755493832875,-420.0,0.00020564,2]
[380036163,1755493832885,-200.0,0.00020623,20]
[380036164,1755493832894,-200.0,0.00020623,20]
[380036165,1755493832904,-200.0,0.00020623,20]
[380036166,1755493832913,-200.0,0.00020623,20]
[380036167,1755493832924,-200.0,0.00020623,20]
[380036168,1755493832935,-200.0,0.00020623,20]
[380036169,1755493832944,-200.0,0.00020623,20]
[380036170,1755493832954,-200.0,0.00020623,20]
[380036171,1755493832963,-200.0,0.00020623,20]
[380036172,1755493832973,-200.0,0.00020623,20]
[380036173,1755493832983,-446.0,0.00020662,2]
[380036174,1755493832992,-7312.44786677,0.00020731,2]
[380036175,1755493833002,-368.63766698,0.00020987,2]
[380036176,1755493833011,-150.0,0.00021,2]
[380036177,1755493833020,-6998.48463922,0.00021147,2]
[380036683,1755493843609,-4794.01629907,0.00018574,2]
[380036690,1755493843668,-205.98370093,0.00018574,2]
[380036693,1755493843810,-303.92789631,0.00018762,2]
[380036694,1755493843819,-313.96322755,0.00021147,2]
[380036695,1755493843829,-203.6,0.00021206,2]
[380036696,1755493843839,-7312.44786677,0.00021562,2]
[380036697,1755493843848,-1400.0,0.00021673,2]
[380036698,1755493843857,-7312.44786677,0.00021978,2]
[380036699,1755493843867,-368.63766698,0.00021991,2]
[380036700,1755493843876,-164.0,0.00022,2]
[380036701,1755493843885,-972.0,0.00022033,2]
[380036702,1755493843895,-637.0,0.00022033,2]
[380036703,1755493843903,-2153.0,0.00022033,2]
[380036704,1755493843913,-408.0,0.00022033,2]
[380036705,1755493843922,-164.0,0.00022192,7]
[380036706,1755493843932,-907.261,0.00022227,2]
[380036707,1755493843941,-179.625,0.00022227,2]
[380036708,1755493843950,-7312.44786677,0.00022394,2]
[380036709,1755493843960,-587.0,0.00022417,2]
[380036710,1755493843969,-168.60347,0.00022463,2]
[380036711,1755493843978,-1000.0,0.00022539,2]
[380036713,1755493843988,-359.0,0.00022539,2]
[380036715,1755493843997,-151.0,0.00022539,2]
[380036717,1755493844007,-160.0,0.000226,2]
[380036719,1755493844018,-1400.0,0.00022769,2]
[380036720,1755493844027,-7312.44786677,0.00022809,2]
[380036721,1755493844036,-500.0,0.0002282,2]
[380036722,1755493844044,-368.63766698,0.00022994,2]
[380036723,1755493844053,-164.0,0.00023014,7]
[380036724,1755493844062,-407.2,0.00023134,2]
[380036725,1755493844072,-260.0,0.00023148,2]
[380036727,1755493844081,-167.447644,0.00023182,2]
[380036729,1755493844090,-7312.44786677,0.00023225,2]
[380036731,1755493844099,-12683.78573522,0.00023229,2]
[380036733,1755493844108,-1000.0,0.00023368,2]
[380036735,1755493844117,-7312.44786677,0.00023641,2]
[380036736,1755493844127,-360.0,0.00023696,2]
[380036738,1755493844137,-1400.0,0.00023865,2]
[380036740,1755493844146,-191.15389471,0.000239,2]
[380036742,1755493844157,-1500.0,0.00023916,2]
[380036744,1755493844167,-368.63766698,0.00023998,2]
[380036746,1755493844176,-7312.44786677,0.00024056,2]
[380036748,1755493844185,-166.0,0.00024164,7]
[380036750,1755493844195,-460.0,0.00024244,2]
[380036752,1755493844206,-531.52,0.00024262,3]
[380036754,1755493844216,-12683.78573522,0.00024272,3]
[380036756,1755493844225,-160.0,0.00024272,3]
[380036758,1755493844234,-375.82681177,0.00024272,3]
[380036760,1755493844245,-160.0,0.00024272,3]
[380036762,1755493844254,-232.18122251,0.00024272,3]
[380036764,1755493844263,-843.81736472,0.00024272,3]
[380036766,1755493844273,-528.58062739,0.00024272,3]
[380036768,1755493844283,-417.15472785,0.00024272,3]
[380036770,1755493844292,-216.85420361,0.00024272,3]
[380036772,1755493844301,-160.0,0.00024272,3]
[380036774,1755493844310,-160.0,0.00024272,3]
[380036776,1755493844319,-823.0,0.00024438,2]
[380036778,1755493844329,-2000.0,0.00024464,2]
[380036780,1755493844338,-350.69682828,0.00024471,2]
[380036782,1755493844347,-7312.44786677,0.00024472,2]
[380036784,1755493844357,-160.0,0.00024563,2]
[380036786,1755493844368,-160.0,0.00024564,2]
[380036788,1755493844377,-160.0,0.00024564,2]
[380036790,1755493844386,-417.15472785,0.00024564,2]
[380036792,1755493844395,-216.85420361,0.00024564,2]
[380036794,1755493844404,-528.58062739,0.00024564,2]
[380036796,1755493844413,-232.18122251,0.00024564,2]
[380036798,1755493844423,-375.82681177,0.00024564,2]
[380036800,1755493844431,-295.9771179,0.00024658,2]
[380036802,1755493844441,-209.12004873,0.000247,2]
[380036804,1755493844450,-2200.0,0.00024756,2]
[380036806,1755493844458,-600.0,0.00024756,20]
[380036808,1755493844467,-560.0,0.00024792,2]
[380036810,1755493844477,-9087.85908966,0.000248,3]
[380037059,1755494666399,435.0,0.00018371,2]
[380037067,1755494730333,61352.52349222,0.000201,120]
[380037071,1755494790601,167.447644,0.00013699,2]
[380037102,1755494933287,2003.0,0.00018371,2]
[380037127,1755495031881,-2000.0,0.000187,2]
[380037129,1755495031890,-1200.0,0.00018737,2]
[380037132,1755495031899,-7491.29988866,0.00018738,2]
[380037133,1755495031908,-186.196037,0.00018788,2]
[380037135,1755495031917,-300.0,0.00018896,2]
[380037138,1755495031927,-300.0,0.00018896,2]
[380037139,1755495031936,-300.0,0.00018896,2]
[380037141,1755495031946,-1108.0,0.00018897,2]
[380037143,1755495031955,-150.0,0.000189,2]
[380037145,1755495031965,-5991.10336521,0.00019379,2]
[380037147,1755495031974,-200.0,0.00019379,20]
[380037149,1755495031983,-200.0,0.00019379,20]
[380037151,1755495031993,-200.0,0.00019379,20]
[380037153,1755495032003,-200.0,0.00019379,20]
[380037155,1755495032013,-200.0,0.00019379,20]
[380037157,1755495032022,-200.0,0.00019379,20]
[380037159,1755495032032,-200.0,0.00019379,20]
[380037161,1755495032042,-200.0,0.00019379,20]
[380037163,1755495032054,-200.0,0.00019379,20]
[380037165,1755495032072,-200.0,0.00019379,20]
[380037167,1755495032082,-1101.61086454,0.00019796,2]
[380037169,1755495032092,-4449.48134799,0.000199,2]
[380037171,1755495032101,-480.0,0.00019996,2]
[380037173,1755495032111,-480.0,0.00019996,2]
[380037175,1755495032121,-151.31843755,0.0002,2]
[380037177,1755495032130,-500.0,0.00020082,2]
[380037179,1755495032139,-518.57206463,0.0002027,2]
[380037181,1755495032149,-274.53139468,0.00020315,2]
[380037183,1755495032158,-515.80422355,0.00020315,2]
[380037185,1755495032167,-500.0,0.00020315,2]
[380037187,1755495032176,-500.0,0.00020315,2]
[380037189,1755495032185,-500.0,0.00020315,2]
[380037191,1755495032195,-500.0,0.00020315,2]
[380037193,1755495032204,-500.0,0.00020315,2]
[380037195,1755495032213,-500.0,0.00020315,2]
[380037197,1755495032222,-500.0,0.00020315,2]
[380037199,1755495032232,-500.0,0.00020315,2]
[380037201,1755495032241,-458.14433274,0.00020315,2]
[380037203,1755495032251,-185.99072167,0.00020315,2]
[380037205,1755495032260,-4449.48134779,0.00020316,2]
[380037207,1755495032269,-469.718066,0.00020342,2]
[380037209,1755495032279,-4374.74790826,0.00020348,2]
[380037211,1755495032290,-8309.03782696,0.00020348,2]
[380037213,1755495032300,-216.85420361,0.00020348,2]
[380037215,1755495032310,-528.58062739,0.00020348,2]
[380037217,1755495032319,-232.18122251,0.00020348,2]
[380037219,1755495032328,-417.15472785,0.00020348,2]
[380037221,1755495032337,-375.82681177,0.00020348,2]
[380037223,1755495032346,-160.0,0.00020348,2]
[380037225,1755495032355,-160.0,0.0002035,2]
[380037227,1755495032365,-480.0,0.00020353,2]
[380037229,1755495032374,-162.0,0.00020575,3]
[380037231,1755495032383,-500.0,0.00020582,2]
[380037233,1755495032392,-420.0,0.00020599,2]
[380037235,1755495032401,-480.0,0.00020627,2]
[380037237,1755495032411,-724.38942297,0.00020731,2]
[380037240,1755495032421,-1149.81579224,0.00020731,2]
[380037242,1755495032433,-2575.27613258,0.00020731,2]
[380037244,1755495032442,-600.0,0.0002076,20]
[380037246,1755495032451,-157.16840863,0.00020901,2]
[380037248,1755495032460,-1000.0,0.0002113,2]
[380037250,1755495032469,-4449.48134779,0.00021147,2]
[380037252,1755495032478,-195.82,0.00021184,2]
[380037254,1755495032487,-4449.48134779,0.00021562,2]
[380037256,1755495032497,-466.33338251,0.00021678,2]
[380037258,1755495032506,-2759.12131358,0.00021878,2]
[380037260,1755495032515,-4449.48134779,0.00021978,2]
[380037262,1755495032524,-164.0,0.00022,2]
[380037264,1755495032533,-192.49150044,0.000222,69]
[380037266,1755495032545,-580.647,0.00022226,2]
[380037267,1755495032556,-179.62521109,0.00022226,2]
[380037269,1755495032565,-160.0,0.00022359,2]
[380037272,1755495032575,-4449.48134779,0.00022394,2]
[380037274,1755495032584,-587.0,0.00022455,2]
[380037275,1755495032594,-1000.0,0.00022539,2]
[380037277,1755495032603,-1000.0,0.00022539,2]
[380037279,1755495032613,-567.0,0.00022539,2]
[380037281,1755495032625,-151.0,0.00022539,2]
[380037284,1755495032635,-914.2959911,0.00022539,2]
[380037286,1755495032644,-2199.23250255,0.00022539,2]
[380037288,1755495032653,-151.0,0.00022539,2]
[380037290,1755495032662,-173.08443572,0.00022539,2]
[380037291,1755495032671,-151.5638422,0.00022539,2]
[380037293,1755495032680,-972.0,0.00022624,2]
[380037295,1755495032690,-637.0,0.00022624,2]
[380037297,1755495032699,-2153.0,0.00022624,2]
[380037299,1755495032709,-408.0,0.00022624,2]
[380037301,1755495032719,-1658.77,0.00022789,10]
[380037302,1755495032727,-2388.63,0.00022799,10]
[380037303,1755495032736,-197.53840037,0.00022799,10]
[380037313,1755495037803,-157.98757158,0.00020215,2]
[380037314,1755495037813,-277.01242842,0.00022809,2]
[380037316,1755495037825,-1156.4,0.00022809,2]
[380037317,1755495037836,-662.51815866,0.00022809,2]
[380037324,1755495039762,-2353.55076071,0.00022809,2]
[380037325,1755495039772,-720.0,0.00022835,20]
[380037326,1755495039782,-260.0,0.00022907,2]
[380037327,1755495039791,-164.0,0.00023014,7]
[380037328,1755495039801,-391.65,0.00023109,2]
[380037329,1755495039810,-4449.48134779,0.00023225,2]
[380037330,1755495039819,-500.0,0.00023452,2]
[380037331,1755495039828,-360.0,0.00023455,2]
[380037332,1755495039838,-4449.48134779,0.00023641,2]
[380037333,1755495039847,-1000.0,0.00023865,2]
[380037334,1755495039856,-151.0,0.00023908,2]
[380037335,1755495039865,-1000.0,0.00024,2]
[380037336,1755495039875,-16879.40610866,0.00024,10]
[380037337,1755495039884,-12683.78573522,0.00024,10]
[380037338,1755495039893,-160.0,0.00024,10]
[380037339,1755495039903,-417.15472785,0.00024,10]
[380037340,1755495039912,-216.85420361,0.00024,10]
[380037341,1755495039922,-215.75323784,0.00024,10]
[380037342,1755495039932,-160.0,0.00024,10]
[380037343,1755495039941,-375.82681177,0.00024,10]
[380037344,1755495039950,-232.18122251,0.00024,10]
[380037345,1755495039960,-843.81736472,0.00024,10]
[380037346,1755495039969,-460.0,0.00024003,2]
[380037347,1755495039979,-4449.48134779,0.00024056,2]
[380037348,1755495039988,-4449.48134779,0.00024472,2]
[380037349,1755495039997,-472.09443595,0.00024479,2]
[380037352,1755495042892,-157.98757156,0.00021347,2]
[380037354,1755495042902,-350.90556405,0.00024479,2]
[380037355,1755495042911,-152.20669071,0.000245,60]
[380037356,1755495042920,-160.0,0.00024541,2]
[380037357,1755495042930,-843.81736472,0.00024541,2]
[380037358,1755495042939,-160.0,0.00024541,2]
[380037359,1755495042948,-215.75323784,0.00024542,2]
[380037360,1755495042958,-560.0,0.00024551,2]
[380037361,1755495042967,-160.0,0.00024568,2]
[380037362,1755495042977,-2200.0,0.00024608,2]
[380037363,1755495042987,-2158.86,0.0002479,10]
[380037364,1755495042996,-245.4877798,0.00024799,2]